bitfinex/quotes_BTCUSD_20250530
["timestamp","ask_amount","ask_price","bid_price","bid_amount"]
[1748626023412,0.49824019,103950.0,103940.0,0.60701878]
[1748626023618,0.49820019,103950.0,103940.0,0.59081878]
[1748626023822,0.50020019,103950.0,103940.0,0.57550916]
[1748626024025,0.53320019,103950.0,103940.0,0.57550916]
[1748626024232,0.53320019,103950.0,103940.0,0.0206695]
[1748626024466,0.53620019,103950.0,103940.0,0.0206695]
[1748626025519,0.53620019,103950.0,103940.0,0.00918791]
[1748626027224,0.53620019,103950.0,103940.0,0.34918791]
[1748626027647,0.82790019,103950.0,103940.0,0.34918791]
[1748626029205,0.81130019,103950.0,103940.0,0.44169913]
[1748626029427,0.48910019,103950.0,103940.0,1.13796711]
[1748626029670,0.31593862,103950.0,103940.0,1.14758785]
[1748626029899,0.82371909,103950.0,103940.0,1.04632272]
[1748626030115,0.82371909,103950.0,103940.0,1.06163234]
[1748626030547,0.50833927,103950.0,103940.0,1.26367197]
[1748626030770,0.82367844,103950.0,103940.0,1.3946658]
[1748626030985,0.81405881,103950.0,103940.0,1.38504506]
[1748626031201,0.83329817,103950.0,103940.0,1.36580385]
[1748626031412,0.83329817,103950.0,103940.0,1.3561831]
[1748626031621,0.83329817,103950.0,103940.0,1.36580375]
[1748626031838,0.84291808,103950.0,103940.0,1.3561831]
[1748626032095,0.52757891,103950.0,103940.0,1.36580385]
[1748626032307,0.51795891,103950.0,103940.0,1.38504469]
[1748626032522,0.2967,103950.0,103940.0,1.3850446]
[1748626032745,0.45900603,103970.0,103960.0,0.371]
[1748626032975,0.76468603,103970.0,103960.0,0.98521076]
[1748626033204,0.76468603,103970.0,103960.0,0.96931076]
[1748626033433,0.76468603,103970.0,103960.0,0.99020483]
[1748626034112,0.45900603,103970.0,103960.0,0.97588702]
[1748626034329,0.48301375,103970.0,103960.0,1.00668702]
[1748626035481,0.49263181,103970.0,103960.0,1.20868778]
[1748626035713,0.5118271,103970.0,103960.0,1.3333982]
[1748626035979,0.5118271,103970.0,103960.0,1.87861934]
[1748626036421,0.52685635,103970.0,103960.0,1.90085629]
[1748626036633,0.22121635,103970.0,103960.0,1.88161934]
[1748626036867,0.21168036,103980.0,103970.0,0.0153]
[1748626037098,0.23081194,103980.0,103970.0,1.3265043]
[1748626037324,0.23081194,103980.0,103970.0,1.33612199]
[1748626037325,0.53645194,103980.0,103970.0,1.33612199]
[1748626037543,0.53645194,103980.0,103970.0,1.3265043]
[1748626037783,0.53645194,103980.0,103970.0,1.35101002]
[1748626038008,0.53645194,103980.0,103970.0,1.3606278]
[1748626038249,0.50760182,103980.0,103970.0,0.58457124]
[1748626038529,0.50760182,103980.0,103970.0,1.01519968]
[1748626038761,0.53770182,103980.0,103970.0,0.36450572]
[1748626038996,0.53770182,103980.0,103970.0,0.36550572]
[1748626039221,0.53770182,103980.0,103970.0,0.36165678]
[1748626039459,0.50760182,103980.0,103970.0,1.00900766]
[1748626039987,0.49798468,103980.0,103970.0,1.00900766]
[1748626040724,0.22394468,103980.0,103970.0,0.38093513]
[1748626040946,0.62535898,103980.0,103970.0,0.02946626]
[1748626041175,0.62535898,103980.0,103970.0,0.01018791]
[1748626041641,0.62535898,103980.0,103970.0,0.00918791]
[1748626041869,0.62535898,103980.0,103960.0,0.02693351]
[1748626041870,0.20198115,103970.0,103960.0,0.00014683]
[1748626042085,0.23358115,103970.0,103960.0,0.00014683]
[1748626042344,0.51085343,103970.0,103960.0,0.00932897]
[1748626042988,0.51080624,103970.0,103960.0,0.01032897]
[1748626043890,0.47920624,103970.0,103960.0,0.99683238]
[1748626044138,0.78472624,103970.0,103960.0,0.99683238]
[1748626044612,0.48882412,103970.0,103960.0,1.20845157]
[1748626044846,0.6020272,103970.0,103960.0,1.36046515]
[1748626045091,0.81362623,103970.0,103960.0,1.33160921]
[1748626045365,0.78477343,103970.0,103960.0,1.10722753]
[1748626045594,0.78477343,103970.0,103960.0,1.32454601]
[1748626046111,0.78477343,103970.0,103960.0,1.3341649]
[1748626046358,0.78477343,103970.0,103960.0,1.3712677]
[1748626046611,0.29650738,103970.0,103960.0,1.40600484]
[1748626046859,0.27727228,103970.0,103960.0,1.40600484]
[1748626047113,0.29650738,103970.0,103960.0,1.40600484]
[1748626047359,0.29650738,103970.0,103960.0,1.39452365]
[1748626047608,0.27727228,103970.0,103960.0,0.83968399]
[1748626047859,0.27727228,103970.0,103960.0,1.94936331]
[1748626048316,0.34394724,103980.0,103970.0,0.59195738]
[1748626048529,0.34394724,103980.0,103970.0,1.33516256]
[1748626048764,0.34394724,103980.0,103970.0,1.35451343]
[1748626048977,0.54590906,103980.0,103970.0,1.35451343]
[1748626049233,0.54590971,103980.0,103970.0,1.37901637]
[1748626049448,0.54590971,103980.0,103970.0,1.39063397]
[1748626049862,0.54590971,103980.0,103970.0,1.39263397]
[1748626050289,0.53629248,103980.0,103970.0,1.40225148]
[1748626050516,0.53629248,103980.0,103970.0,1.39263397]
[1748626050733,0.51705905,103980.0,103970.0,0.48370793]
[1748626050955,0.51705905,103980.0,103970.0,0.04785363]
[1748626050956,0.54785905,103980.0,103970.0,0.04785363]
[1748626051833,0.54785905,103980.0,103970.0,0.03253582]
[1748626054296,0.82513133,103980.0,103970.0,0.03253582]
[1748626055225,0.82505133,103980.0,103970.0,0.03253582]
[1748626057623,0.92090563,103980.0,103970.0,0.01318495]
[1748626058292,1.12090563,103980.0,103970.0,0.01318495]
[1748626058509,0.84363335,103980.0,103970.0,0.01318495]
[1748626058963,1.39847301,103980.0,103970.0,0.01318495]
[1748626059644,1.39847301,103980.0,103970.0,0.002]
[1748626060087,1.39947301,103980.0,103970.0,0.002]
[1748626060297,0.23318115,103970.0,103960.0,0.00014683]
[1748626060537,0.42575545,103970.0,103960.0,0.00014683]
[1748626061003,0.73115545,103970.0,103960.0,0.00014683]
[1748626061701,0.23318115,103970.0,103960.0,0.3493466]
[1748626061916,0.50734115,103970.0,103960.0,0.99669748]
[1748626062353,0.20198115,103970.0,103960.0,0.44285782]
[1748626062565,0.50734115,103970.0,103960.0,0.44285782]
[1748626062774,0.50734115,103970.0,103960.0,0.45433616]
[1748626062975,0.79464115,103970.0,103960.0,0.45433616]
[1748626063190,0.79468115,103970.0,103960.0,0.45433616]
[1748626063609,0.81058115,103970.0,103960.0,0.45433616]
[1748626064238,0.82558115,103970.0,103960.0,0.3503466]
[1748626066383,0.48928115,103970.0,103960.0,0.3503466]
[1748626066599,0.80425903,103970.0,103960.0,0.3503466]
[1748626066836,0.49889903,103970.0,103960.0,0.55234727]
[1748626067051,0.49889903,103970.0,103960.0,1.11416794]
[1748626067276,0.81387718,103970.0,103960.0,1.24151667]
[1748626067497,0.81387718,103970.0,103960.0,1.23189805]
[1748626067709,0.52657718,103970.0,103960.0,1.32775235]
[1748626067927,0.52657718,103970.0,103960.0,1.33737106]
[1748626068202,0.52657718,103970.0,103960.0,1.3488494]
[1748626068415,0.5169593,103970.0,103960.0,1.33923069]
[1748626068651,0.33421307,103970.0,103960.0,1.35846783]
[1748626069062,0.53619431,103970.0,103960.0,1.35846783]
[1748626069273,0.34383113,103970.0,103960.0,1.35846783]
[1748626069501,0.52657625,103970.0,103960.0,1.33923069]
[1748626069912,0.52657625,103970.0,103960.0,1.34884949]
[1748626070134,0.52657625,103970.0,103960.0,1.33923069]
[1748626070342,0.52657625,103970.0,103960.0,1.3296118]
[1748626070572,0.51695884,103970.0,103960.0,1.34884968]
[1748626070798,0.51695884,103970.0,103960.0,1.35846848]
[1748626071011,0.3245951,103970.0,103960.0,1.35846857]
[1748626071216,0.22121616,103970.0,103960.0,1.36808728]
[1748626071426,0.23083431,103970.0,103960.0,1.36808728]
[1748626071635,0.23083431,103970.0,103960.0,1.35846857]
[1748626072264,0.21159921,103970.0,103960.0,1.33923088]
[1748626072471,0.21159921,103970.0,103960.0,1.34884987]
[1748626072909,0.20198133,103970.0,103960.0,1.0125189]
[1748626073122,0.20198133,103970.0,103960.0,0.02182494]
[1748626073123,0.21698133,103970.0,103960.0,0.02182494]
[1748626073327,0.23238133,103970.0,103960.0,0.02182494]
[1748626074538,0.32894133,103970.0,103960.0,0.02182494]
[1748626076028,0.32894133,103970.0,103960.0,0.0103466]
[1748626076235,0.97963529,103970.0,103960.0,0.0103466]
[1748626076610,0.42479563,103970.0,103960.0,0.00114683]
[1748626081459,0.73011563,103970.0,103960.0,0.00114683]
[1748626082926,1.28495529,103970.0,103960.0,0.00114683]
[1748626083371,0.73011563,103970.0,103960.0,0.00114683]
[1748626087235,1.70031529,103970.0,103960.0,0.00114683]
[1748626087461,1.76031529,103970.0,103960.0,0.00114683]
[1748626088076,1.76031529,103970.0,103960.0,0.00014683]
[1748626088302,1.20547563,103970.0,103960.0,0.00014683]
[1748626088506,1.76231529,103970.0,103960.0,0.00014683]
[1748626088704,2.10131529,103970.0,103960.0,0.00014683]
[1748626088919,2.10031529,103970.0,103960.0,0.00014683]
[1748626089995,2.10431529,103970.0,103960.0,0.00014683]
[1748626090210,2.10831529,103970.0,103960.0,0.00014683]
[1748626091524,0.21170065,103920.0,103910.0,0.01147834]
[1748626091758,0.51694065,103920.0,103910.0,0.01196816]
[1748626091977,0.54724065,103920.0,103910.0,0.01196816]
[1748626092636,0.64309495,103920.0,103910.0,0.01196816]
[1748626092855,0.64309495,103920.0,103910.0,0.00950452]
[1748626093074,0.64309495,103920.0,103910.0,0.00950458]
[1748626093283,0.64309495,103920.0,103910.0,0.01250458]
[1748626093507,0.64309495,103920.0,103910.0,0.00048982]
[1748626093727,0.64309495,103920.0,103910.0,0.00448982]
[1748626093938,1.19793461,103920.0,103910.0,0.00448982]
[1748626094150,1.19793461,103920.0,103910.0,0.00950502]
[1748626094361,1.18693461,103920.0,103910.0,0.00048982]
[1748626094573,1.19655721,103920.0,103910.0,0.01050523]
[1748626094788,1.19655721,103920.0,103910.0,0.01050531]
[1748626095004,1.19655721,103920.0,103910.0,0.00950531]
[1748626095217,1.19755721,103920.0,103910.0,0.00048982]
[1748626095651,0.64271755,103920.0,103910.0,0.00048982]
[1748626096291,0.64271755,103920.0,103910.0,0.00148982]
[1748626096508,0.33747755,103920.0,103910.0,0.00148982]
[1748626096730,0.73935755,103920.0,103910.0,0.00148982]
[1748626098235,1.29419721,103920.0,103910.0,0.00148982]
[1748626098501,0.73935755,103920.0,103910.0,0.00148982]
[1748626100699,0.40365755,103920.0,103910.0,0.01668982]
[1748626100920,0.61308325,103920.0,103910.0,0.01668982]
[1748626101149,0.61308325,103920.0,103910.0,0.00148982]
[1748626101375,0.21132325,103920.0,103910.0,0.42988277]
[1748626101588,0.51660325,103920.0,103910.0,0.44442362]
[1748626102016,0.51660325,103920.0,103910.0,0.38653067]
[1748626104471,0.80370325,103920.0,103910.0,0.38653067]
[1748626106318,0.49842325,103920.0,103910.0,0.38653067]
[1748626106523,0.80366325,103920.0,103910.0,0.38653067]
[1748626108227,0.80366325,103920.0,103910.0,0.37123067]
[1748626108680,0.80366325,103920.0,103910.0,0.47954189]
[1748626109746,0.80366325,103920.0,103910.0,0.38703067]
[1748626111708,0.80366325,103920.0,103910.0,0.35603067]
[1748626112134,0.80366325,103920.0,103910.0,0.01603067]
[1748626113075,0.80366325,103920.0,103910.0,0.03173067]
[1748626116828,0.80366325,103920.0,103910.0,0.04773067]
[1748626117264,0.80366325,103920.0,103910.0,0.14024189]
[1748626119544,0.80366325,103920.0,103910.0,0.04773067]
[1748626120115,0.49842325,103920.0,103910.0,0.60287352]
[1748626120375,0.79813557,103920.0,103910.0,0.60287352]
[1748626123283,0.49017805,103920.0,103910.0,1.13534777]
[1748626123526,0.02024454,103920.0,103910.0,1.26969561]
[1748626123741,0.02024427,103920.0,103910.0,1.92882802]
[1748626124039,0.23194492,103920.0,103910.0,1.36406211]
[1748626124244,0.23194482,103920.0,103910.0,1.37368517]
[1748626124462,0.02986659,103920.0,103910.0,1.37368517]
[1748626124687,0.02986659,103920.0,103910.0,1.37652464]
[1748626125125,0.01062213,103920.0,103910.0,1.37752464]
[1748626125373,0.00962204,103920.0,103910.0,1.36710093]
[1748626125620,0.52639924,103930.0,103920.0,0.23297842]
[1748626125836,0.22131924,103930.0,103920.0,0.99573189]
[1748626126052,0.52639924,103930.0,103920.0,0.97648679]
[1748626126264,0.52639924,103930.0,103920.0,0.9668641]
[1748626126470,0.52639924,103930.0,103920.0,0.97648679]
[1748626126687,0.22131924,103930.0,103920.0,0.98799389]
[1748626126912,0.5263985,103930.0,103920.0,0.98799389]
[1748626127132,0.52639915,103930.0,103920.0,0.99761649]
[1748626127353,0.51677766,103930.0,103920.0,0.99961667]
[1748626127566,0.51677766,103930.0,103920.0,0.79753825]
[1748626127777,0.51677766,103930.0,103920.0,1.00531179]
[1748626127965,0.51677766,103930.0,103920.0,1.01593448]
[1748626128447,0.51677766,103930.0,103920.0,1.01023927]
[1748626128665,0.52639896,103930.0,103920.0,1.01023927]
[1748626128879,0.53602008,103930.0,103920.0,1.01023927]
[1748626129098,0.53602008,103930.0,103920.0,1.03517949]
[1748626129329,0.53602008,103930.0,103920.0,1.02555708]
[1748626129561,0.23094008,103930.0,103920.0,1.01593448]
[1748626129774,0.53598008,103930.0,103920.0,1.0351794]
[1748626130029,0.00962112,103930.0,103920.0,1.95448468]
[1748626130245,0.202074,103950.0,103940.0,0.23875955]
[1748626130461,0.202074,103950.0,103940.0,0.68148975]
[1748626130462,0.51673373,103950.0,103940.0,0.68148975]
[1748626131121,0.22131373,103950.0,103940.0,0.99089225]
[1748626131335,0.52635373,103950.0,103940.0,0.9812715]
[1748626131541,0.22331373,103950.0,103940.0,1.00051308]
[1748626131718,0.52831373,103950.0,103940.0,1.00051308]
[1748626131985,0.516694,103950.0,103940.0,1.01013402]
[1748626132400,0.518694,103950.0,103940.0,1.03509968]
[1748626132606,0.50907409,103950.0,103940.0,1.01585828]
[1748626132815,0.50707409,103950.0,103940.0,1.01585828]
[1748626133058,0.50707409,103950.0,103940.0,0.23370995]
[1748626133285,0.50707409,103950.0,103940.0,0.9812715]
[1748626133498,0.50707409,103950.0,103940.0,0.99089243]
[1748626133719,0.49745409,103950.0,103940.0,0.7888528]
[1748626134192,0.49745409,103950.0,103940.0,0.0260496]
[1748626134411,0.52915409,103950.0,103940.0,0.0260496]
[1748626134632,0.52915409,103950.0,103940.0,0.01150875]
[1748626134859,0.52915409,103950.0,103930.0,0.92119245]
[1748626134860,0.2116601,103940.0,103930.0,0.92119245]
[1748626135092,0.2116601,103940.0,103930.0,0.3660496]
[1748626135319,0.2116601,103940.0,103930.0,0.35150875]
[1748626135560,0.2433601,103940.0,103930.0,0.35150875]
[1748626135812,0.2433601,103940.0,103930.0,0.35454085]
[1748626135813,0.2276601,103940.0,103930.0,0.35454085]
[1748626136026,0.2116601,103940.0,103930.0,0.35454085]
[1748626136248,0.2116601,103940.0,103930.0,0.44805207]
[1748626136475,0.2116601,103940.0,103930.0,1.01859492]
[1748626136921,0.2116601,103940.0,103930.0,1.30688643]
[1748626137190,0.50699945,103940.0,103930.0,1.32208643]
[1748626137429,0.50699945,103940.0,103930.0,1.13064922]
[1748626137902,0.50699945,103940.0,103930.0,1.33270829]
[1748626138183,0.50699945,103940.0,103930.0,1.13998892]
[1748626138418,0.4973787,103940.0,103930.0,1.33242613]
[1748626138892,0.4973787,103940.0,103930.0,1.3420478]
[1748626139098,0.4973787,103940.0,103930.0,1.13036706]
[1748626139319,0.4973787,103940.0,103930.0,1.32280427]
[1748626139546,0.1924187,103940.0,103930.0,1.35355664]
[1748626139759,0.1924187,103940.0,103930.0,1.36317813]
[1748626139760,0.51657964,103940.0,103930.0,1.36317813]
[1748626139981,0.202074,103950.0,103930.0,1.37279952]
[1748626140225,0.506994,103950.0,103940.0,0.80374117]
[1748626140440,0.506994,103950.0,103940.0,0.69421274]
[1748626140659,0.506994,103950.0,103940.0,0.98248574]
[1748626140878,0.506994,103950.0,103940.0,0.99210667]
[1748626141133,0.506994,103950.0,103940.0,1.00361542]
[1748626141597,0.507994,103950.0,103940.0,1.00361542]
[1748626141818,0.507994,103950.0,103940.0,1.02285682]
[1748626142265,0.507994,103950.0,103940.0,0.81119672]
[1748626142491,0.507994,103950.0,103940.0,1.00361542]
[1748626142711,0.507994,103950.0,103940.0,1.02285682]
[1748626143199,0.507954,103950.0,103940.0,1.02285682]
[1748626143410,0.506954,103950.0,103940.0,1.02285682]
[1748626143704,0.506954,103950.0,103940.0,1.02385682]
[1748626144422,0.52619363,103950.0,103940.0,1.02485682]
[1748626144689,0.4795187,103960.0,103950.0,0.34]
[1748626144903,0.7843987,103960.0,103950.0,1.2135525]
[1748626145120,0.4795187,103960.0,103950.0,1.20393277]
[1748626145343,0.7843987,103960.0,103950.0,1.22023277]
[1748626145773,0.4795187,103960.0,103950.0,1.22023277]
[1748626145999,0.7853987,103960.0,103950.0,1.01821276]
[1748626146217,0.7853987,103960.0,103950.0,1.00191276]
[1748626146450,0.7853987,103960.0,103950.0,1.19431295]
[1748626146666,0.7863987,103960.0,103950.0,1.20393295]
[1748626146919,0.7863987,103960.0,103950.0,0.64907226]
[1748626147122,0.8014987,103960.0,103950.0,0.35454085]
[1748626147365,0.8174987,103960.0,103950.0,0.35554085]
[1748626147609,0.8164987,103960.0,103950.0,0.35554085]
[1748626147832,0.8164987,103960.0,103950.0,0.35654085]
[1748626148477,0.8164987,103960.0,103950.0,0.36097431]
[1748626148721,0.8164987,103960.0,103950.0,0.02097431]
[1748626148936,0.8164987,103960.0,103950.0,0.05975712]
[1748626149416,0.8164587,103960.0,103950.0,0.07429797]
[1748626151692,0.5116187,103960.0,103950.0,0.07429797]
[1748626151914,0.7843187,103960.0,103950.0,0.07429797]
[1748626153012,0.4795187,103960.0,103950.0,0.26669816]
[1748626153220,0.4795187,103960.0,103950.0,0.83655885]
[1748626153221,0.7842787,103960.0,103950.0,0.83655885]
[1748626153436,0.7842787,103960.0,103950.0,0.64415866]
[1748626153648,0.7842787,103960.0,103950.0,0.84617885]
[1748626153854,0.7842787,103960.0,103950.0,0.31244682]
[1748626154278,0.7842787,103960.0,103950.0,0.32206664]
[1748626154719,0.7842787,103960.0,103950.0,0.30282691]
[1748626155570,0.60147871,103960.0,103950.0,0.31244682]
[1748626155779,0.81309827,103960.0,103950.0,0.33168599]
[1748626155985,0.8227167,103960.0,103950.0,0.34130544]
[1748626156660,0.80347956,103960.0,103950.0,0.32779183]
[1748626156879,0.80347956,103960.0,103950.0,0.33741156]
[1748626157103,0.80347956,103960.0,103950.0,0.33691156]
[1748626157308,0.80347956,103960.0,103950.0,0.37155073]
[1748626157737,0.80347956,103960.0,103950.0,0.36193073]
[1748626157738,0.78845256,103960.0,103950.0,0.36193073]
[1748626157967,0.78845256,103960.0,103950.0,0.91679142]
[1748626158590,0.48369256,103960.0,103950.0,0.92641078]
[1748626158833,0.22121625,103970.0,103960.0,0.25217856]
[1748626159076,0.34319085,103970.0,103960.0,1.01130477]
[1748626159565,0.54517209,103970.0,103960.0,1.02664978]
[1748626159807,0.34319086,103970.0,103960.0,1.36664978]
[1748626160025,0.5451721,103970.0,103960.0,1.3663033]
[1748626160513,0.01923501,103970.0,103960.0,1.37550527]
[1748626160746,0.02885279,103970.0,103960.0,1.38307201]
[1748626160987,0.03847076,103970.0,103960.0,1.38307201]
[1748626161220,0.03847076,103970.0,103960.0,1.38507201]
[1748626161425,0.00961741,103970.0,103960.0,1.38507201]
[1748626161640,0.0192351,103970.0,103960.0,1.38507201]
[1748626161862,0.02885307,103970.0,103960.0,1.38507201]
[1748626162487,0.02885307,103970.0,103960.0,1.38607201]
[1748626162915,0.03847113,103970.0,103960.0,1.38607201]
[1748626163327,0.02885307,103970.0,103960.0,1.38607201]
[1748626163963,0.00961741,103970.0,103960.0,1.38607201]
[1748626164148,0.219234,103980.0,103970.0,0.24603432]
[1748626164386,0.71630761,103980.0,103970.0,0.97929654]
[1748626164601,0.71630761,103980.0,103970.0,0.97518101]
[1748626165011,0.71630761,103980.0,103970.0,0.98479898]
[1748626165439,0.71630761,103980.0,103970.0,0.98090796]
[1748626165654,0.70669075,103980.0,103970.0,0.98090796]
[1748626165860,0.70669075,103980.0,103970.0,0.77892663]
[1748626166358,0.73719075,103980.0,103970.0,0.05058775]
[1748626166582,0.43251075,103980.0,103970.0,0.0360469]
[1748626166794,1.38786496,103980.0,103970.0,0.02070189]
[1748626167464,1.38786496,103980.0,103970.0,0.00920197]
[1748626167883,1.38886496,103980.0,103970.0,0.00920197]
[1748626168092,0.83435075,103980.0,103970.0,0.00920197]
[1748626168525,0.83535075,103980.0,103970.0,0.00920197]
[1748626169295,0.93120505,103980.0,103970.0,0.00920197]
[1748626175799,1.48596912,103980.0,103970.0,0.00920197]
[1748626176659,1.48596912,103980.0,103940.0,0.38138578]
[1748626176660,0.21812001,103950.0,103940.0,0.38138578]
[1748626176877,0.52268001,103950.0,103940.0,0.44118428]
[1748626177093,0.53908001,103950.0,103940.0,0.04138578]
[1748626177712,0.53908001,103950.0,103940.0,0.03525228]
[1748626177960,0.53908001,103950.0,103940.0,0.03825228]
[1748626178190,0.53908001,103950.0,103940.0,0.04125228]
[1748626178402,0.53908001,103950.0,103940.0,0.02671143]
[1748626179248,0.53908001,103950.0,103940.0,0.06568715]
[1748626180144,0.53908001,103950.0,103940.0,0.01521151]
[1748626181476,0.81118001,103950.0,103940.0,0.01521151]
[1748626184557,0.90703431,103950.0,103940.0,0.01521151]
[1748626184755,1.26548825,103950.0,103940.0,0.01521151]
[1748626185142,1.26548825,103950.0,103940.0,0.006]
[1748626185392,1.26548825,103950.0,103940.0,0.003]
[1748626185598,0.73109431,103950.0,103940.0,0.003]
[1748626185799,0.21168027,103930.0,103920.0,0.21661636]
[1748626185930,0.51620027,103930.0,103920.0,0.02211634]
[1748626186138,0.51620027,103930.0,103920.0,0.36211634]
[1748626186725,0.51620027,103930.0,103920.0,0.37131174]
[1748626186934,0.51620027,103930.0,103920.0,0.37445863]
[1748626187352,0.51620027,103930.0,103920.0,0.37745863]
[1748626187936,0.51620027,103930.0,103920.0,0.36988314]
[1748626188767,0.53140027,103930.0,103920.0,0.36988314]
[1748626189646,0.22688027,103930.0,103920.0,0.56233887]
[1748626189851,0.51620027,103930.0,103920.0,0.57196156]
[1748626190079,0.51620027,103930.0,103920.0,1.12702861]
[1748626190292,0.79792213,103930.0,103920.0,1.22916243]
[1748626190508,0.79792213,103930.0,103920.0,1.24647387]
[1748626190509,0.28172121,103930.0,103920.0,1.24647387]
[1748626190738,0.80754306,103930.0,103920.0,1.27867397]
[1748626190944,0.2721,103930.0,103920.0,1.28829619]
[1748626191154,0.61506603,103930.0,103920.0,1.28829619]
[1748626191372,0.60544427,103930.0,103920.0,1.28829619]
[1748626191781,0.80750324,103930.0,103920.0,1.28829619]
[1748626191991,0.80750324,103930.0,103920.0,1.29017398]
[1748626192203,0.8171251,103930.0,103920.0,1.29979621]
[1748626192414,0.8171251,103930.0,103920.0,1.28829629]
[1748626192615,0.8171251,103930.0,103920.0,1.29791842]
[1748626192812,0.80750389,103930.0,103920.0,1.28829629]
[1748626193026,0.7978825,103930.0,103920.0,1.27867406]
[1748626193246,0.7978825,103930.0,103920.0,1.29017398]
[1748626193453,0.29134306,103930.0,103920.0,1.34979611]
[1748626193666,0.2721,103930.0,103920.0,1.34979611]
[1748626193880,0.2721,103930.0,103920.0,2.00071746]
[1748626194093,0.32372122,103940.0,103930.0,0.59340167]
[1748626194306,0.31410028,103940.0,103930.0,1.33683424]
[1748626194544,0.32372075,103940.0,103930.0,1.35752956]
[1748626194749,0.3333415,103940.0,103930.0,1.35752956]
[1748626195202,0.53538104,103940.0,103930.0,1.35752956]
[1748626195419,0.34296234,103940.0,103930.0,1.35952956]
[1748626196036,0.34296234,103940.0,103930.0,1.36052956]
[1748626196519,0.53538104,103940.0,103930.0,1.36052956]
[1748626196735,0.53538169,103940.0,103930.0,1.35090835]
[1748626197155,0.53538169,103940.0,103930.0,1.36052974]
[1748626197360,0.53538169,103940.0,103930.0,1.35090835]
[1748626197573,0.52576122,103940.0,103930.0,1.22629731]
[1748626197795,0.52576122,103940.0,103930.0,1.23591889]
[1748626198011,0.52572122,103940.0,103930.0,1.2359187]
[1748626198457,0.52572122,103940.0,103930.0,1.26164]
[1748626198667,0.32368122,103940.0,103930.0,1.37877243]
[1748626198875,0.53534095,103940.0,103930.0,1.37877243]
[1748626199291,0.53534169,103940.0,103930.0,1.36915122]
[1748626199912,0.53534169,103940.0,103930.0,1.35953002]
[1748626200405,0.53534169,103940.0,103930.0,1.10712789]
[1748626200406,0.51610047,103940.0,103930.0,1.10712789]
[1748626200587,0.51610047,103940.0,103930.0,1.01461667]
[1748626200798,0.54860047,103940.0,103930.0,0.37823617]
[1748626201024,0.51606047,103940.0,103930.0,1.12574043]
[1748626201234,0.50643963,103940.0,103930.0,1.14498396]
[1748626201461,0.2721,103950.0,103940.0,0.03378225]
[1748626201708,0.29133936,103950.0,103940.0,0.90314258]
[1748626201925,0.29133936,103950.0,103940.0,0.9401379]
[1748626201926,0.62459771,103950.0,103940.0,0.9401379]
[1748626202140,0.5448979,103950.0,103940.0,0.9401379]
[1748626202388,0.35249771,103950.0,103940.0,0.9401379]
[1748626202604,0.34287854,103950.0,103940.0,1.03264912]
[1748626202814,0.34287854,103950.0,103940.0,1.04799413]
[1748626203037,0.19238168,103960.0,103950.0,0.55656086]
[1748626203038,0.21161919,103960.0,103950.0,0.55656086]
[1748626203261,0.51597919,103960.0,103950.0,1.12762791]
[1748626203476,0.51597965,103960.0,103950.0,1.19451929]
[1748626203696,0.51597965,103960.0,103950.0,1.0113145]
[1748626204524,0.54817965,103960.0,103950.0,0.36373625]
[1748626205599,0.53187965,103960.0,103950.0,0.36373625]
[1748626205821,0.54817965,103960.0,103950.0,0.36373625]
[1748626206028,0.54817965,103960.0,103950.0,0.3491954]
[1748626208423,0.54809965,103960.0,103950.0,0.3491954]
[1748626208636,0.54809965,103960.0,103950.0,0.43962165]
[1748626210159,0.23805107,103960.0,103950.0,0.43962165]
[1748626210365,0.54233107,103960.0,103950.0,0.43962165]
[1748626211535,0.23805107,103960.0,103950.0,0.9946887]
[1748626211758,0.20585107,103960.0,103950.0,0.9946887]
[1748626212433,0.23675107,103960.0,103950.0,0.43962165]
[1748626212920,0.22115107,103960.0,103950.0,0.43962165]
[1748626213334,0.23765107,103960.0,103950.0,0.3491954]
[1748626214040,0.54189107,103960.0,103950.0,0.3491954]
[1748626215826,1.19281242,103960.0,103950.0,0.0091954]
[1748626216877,0.00962167,103930.0,103920.0,0.93659972]
[1748626217083,0.50625888,103930.0,103920.0,0.47738697]
[1748626217518,0.50625888,103930.0,103920.0,0.51688522]
[1748626217972,0.51588046,103930.0,103920.0,0.71896364]
[1748626218185,0.50625888,103930.0,103920.0,1.08825227]
[1748626218598,0.50625888,103930.0,103920.0,1.10359728]
[1748626218808,0.50625888,103930.0,103920.0,1.10859728]
[1748626219220,0.50625888,103930.0,103920.0,1.09229728]
[1748626219900,0.52165888,103930.0,103920.0,0.38319584]
[1748626220777,0.52165888,103930.0,103920.0,0.36785083]
[1748626220994,0.50625888,103930.0,103920.0,0.36785083]
[1748626221633,0.52255888,103930.0,103920.0,0.36785083]
[1748626221833,0.53765888,103930.0,103920.0,0.36785083]
[1748626222484,1.18860593,103930.0,103920.0,0.02785083]
[1748626222695,1.18860593,103930.0,103920.0,0.02534277]
[1748626222696,1.28446023,103930.0,103920.0,0.02534277]
[1748626222915,1.33446023,103930.0,103920.0,0.01635091]
[1748626223141,1.91839828,103930.0,103920.0,0.01635091]
[1748626223615,1.36333123,103930.0,103920.0,0.01135091]
[1748626223841,1.36333123,103930.0,103920.0,0.00214689]
[1748626224063,1.36380447,103930.0,103920.0,0.00214689]
[1748626224509,1.36380447,103930.0,103920.0,0.00014689]
[1748626224760,1.36980447,103930.0,103920.0,0.00014689]
[1748626224965,1.36680447,103930.0,103920.0,0.00014689]
[1748626225449,1.37680447,103930.0,103920.0,0.00014689]
[1748626226374,0.42518418,103930.0,103920.0,0.00014689]
[1748626226598,0.46110418,103930.0,103920.0,0.00014689]
[1748626226827,0.73643318,103930.0,103920.0,0.00014689]
[1748626227518,1.29197347,103930.0,103920.0,0.00014689]
[1748626230805,2.19751376,103930.0,103920.0,0.00014689]
[1748626231061,1.69197347,103930.0,103920.0,0.00014689]
[1748626231705,0.73331318,103930.0,103920.0,0.00014689]
[1748626231927,0.33331318,103930.0,103920.0,0.00014689]
[1748626232379,0.73343318,103930.0,103920.0,0.00014689]
[1748626232798,0.72943318,103930.0,103920.0,0.00014689]
[1748626233057,0.73143318,103930.0,103920.0,0.00014689]
[1748626233272,1.28997347,103930.0,103920.0,0.00014689]
[1748626233491,0.73143318,103930.0,103920.0,0.00014689]
[1748626233693,0.73443318,103930.0,103920.0,0.00014689]
[1748626234123,0.73243318,103930.0,103920.0,0.00014689]
[1748626234337,0.73343318,103930.0,103920.0,0.00014689]
[1748626235234,1.28897347,103930.0,103920.0,0.00014689]
[1748626237023,0.73343318,103930.0,103920.0,0.00014689]
[1748626237239,1.28897347,103930.0,103920.0,0.00014689]
[1748626237686,0.42923318,103930.0,103920.0,0.00014689]
[1748626237904,1.28897347,103930.0,103920.0,0.00014689]
[1748626238122,0.98477347,103930.0,103920.0,0.00014689]
[1748626238339,1.28897347,103930.0,103920.0,0.00014689]
[1748626238584,0.21568027,103930.0,103920.0,0.5518479]
[1748626238812,0.51988027,103930.0,103920.0,0.65681384]
[1748626239035,0.51988027,103930.0,103920.0,1.35161651]
[1748626239036,0.01362102,103930.0,103920.0,1.35161651]
[1748626239255,0.03286344,103930.0,103920.0,1.35161651]
[1748626239941,0.04148493,103930.0,103920.0,0.81674034]